bitfinex-derivatives/quotes_BTCF0:USTF0_20250429
["timestamp","ask_amount","ask_price","bid_price","bid_amount"]
[1745965929262,0.23,94387.0,94372.0,0.53031899]
[1745965929459,0.10594679,94386.0,94372.0,0.53031899]
[1745965929657,0.35594679,94386.0,94372.0,0.53031899]
[1745965929857,0.08,94386.0,94385.0,0.3608]
[1745965930058,0.08,94386.0,94385.0,0.3078]
[1745965930263,0.08,94386.0,94385.0,0.2548]
[1745965930461,0.18595521,94386.0,94385.0,0.2018]
[1745965930651,0.18595521,94386.0,94385.0,0.0958]
[1745965930850,0.18595521,94386.0,94385.0,0.053]
[1745965931055,0.18595521,94386.0,94385.0,0.0428]
[1745965931256,0.18595521,94386.0,94373.0,0.1878]
[1745965931464,0.1831,94385.0,94373.0,0.12410229]
[1745965931763,0.4812,94385.0,94373.0,0.12410229]
[1745965932166,0.10594847,94384.0,94373.0,0.12410229]
[1745965932469,0.38594847,94384.0,94374.0,0.191]
[1745965933656,0.38594847,94384.0,94383.0,0.3608]
[1745965933851,0.38594847,94384.0,94383.0,0.3078]
[1745965934050,0.38594847,94384.0,94383.0,0.2548]
[1745965934256,0.38594847,94384.0,94383.0,0.2018]
[1745965934458,0.38594847,94384.0,94383.0,0.14876052]
[1745965934660,0.38594847,94384.0,94374.0,0.191]
[1745965934962,0.38594847,94384.0,94373.0,0.12410229]
[1745965934963,0.3608,94381.0,94364.0,0.38014529]
[1745965935167,0.1808,94380.0,94364.0,0.57906999]
[1745965935468,0.4889,94380.0,94364.0,0.32906999]
[1745965935656,0.10595072,94379.0,94364.0,0.26571099]
[1745965935853,0.05,94378.0,94364.0,0.25702099]
[1745965936059,0.5189,94378.0,94364.0,0.25702099]
[1745965936472,0.10596363,94377.0,94363.0,0.31198789]
[1745965936770,0.3608,94373.0,94363.0,0.29298789]
[1745965936956,0.6208,94373.0,94363.0,0.29298789]
[1745965937153,0.2189,94372.0,94364.0,0.001]
[1745965937351,0.57486475,94372.0,94359.0,0.39895139]
[1745965937761,0.57486475,94372.0,94359.0,0.25]
[1745965938173,0.57486475,94372.0,94360.0,0.1865]
[1745965938361,0.57486475,94372.0,94360.0,0.13980931]
[1745965938558,0.57486475,94372.0,94360.0,0.38980931]
[1745965939164,0.3608,94370.0,94363.0,0.001]
[1745965939370,0.6108,94370.0,94363.0,0.001]
[1745965939565,0.3427,94369.0,94363.0,0.001]
[1745965939868,0.6986698,94369.0,94360.0,0.003]
[1745965940076,0.3608,94362.0,94348.0,0.3608]
[1745965940368,0.3608,94352.0,94345.0,0.21493587]
[1745965940671,0.6108,94352.0,94345.0,0.18404587]
[1745965940863,0.3761,94351.0,94346.0,0.1961]
[1745965941065,0.6461,94351.0,94346.0,0.1961]
[1745965941265,0.10598272,94350.0,94346.0,0.18949]
[1745965941469,0.37598272,94350.0,94346.0,0.18949]
[1745965941667,0.37598272,94350.0,94347.0,0.1819]
[1745965941970,0.27,94350.0,94347.0,0.3681]
[1745965942172,0.10599058,94349.0,94347.0,0.4881]
[1745965942469,0.35599058,94349.0,94347.0,0.4881]
[1745965942663,0.11460793,94364.0,94347.0,0.83785001]
[1745965942865,0.10599058,94348.0,94347.0,0.69389001]
[1745965943059,0.35599058,94348.0,94347.0,0.64584598]
[1745965943263,0.25,94348.0,94347.0,0.51629285]
[1745965943467,0.35599058,94348.0,94347.0,0.51729285]
[1745965943663,0.35599058,94348.0,94347.0,0.44909061]
[1745965943871,0.12640142,94360.0,94347.0,0.43596464]
[1745965944070,0.37640142,94360.0,94348.0,0.1822]
[1745965944271,0.37640142,94360.0,94348.0,0.17054]
[1745965944476,0.28869114,94359.0,94348.0,0.17054]
[1745965944779,0.56869114,94359.0,94348.0,0.17054]
[1745965945159,0.17640142,94360.0,94358.0,0.3608]
[1745965945359,0.22,94360.0,94359.0,0.1238956]
[1745965945564,0.22,94360.0,94359.0,0.0708956]
[1745965945766,0.325976,94360.0,94359.0,0.0125908]
[1745965945961,0.43195423,94360.0,94358.0,0.2673908]
[1745965946167,0.28868,94359.0,94358.0,0.209086]
[1745965946364,0.07232,94365.0,94358.0,0.156086]
[1745965946570,0.07232,94365.0,94348.0,0.004]
[1745965946571,0.05,94360.0,94359.0,0.003]
[1745965946864,0.05,94360.0,94350.0,0.3608]
[1745965946865,0.21,94360.0,94350.0,0.3608]
[1745965947067,0.21,94360.0,94358.0,0.003]
[1745965947378,0.10597879,94359.0,94358.0,0.003]
[1745965947566,0.07232,94367.0,94359.0,0.3668]
[1745965947770,0.24,94367.0,94359.0,0.3138]
[1745965947969,0.17829823,94366.0,94359.0,0.2608]
[1745965948170,0.05,94360.0,94359.0,0.2078]
[1745965948380,0.34,94360.0,94359.0,0.003]
[1745965948572,0.05,94360.0,94353.0,0.18404587]
[1745965948779,0.15597767,94360.0,94358.0,0.18404587]
[1745965948976,0.15597767,94360.0,94359.0,0.3608]
[1745965949176,0.15597767,94360.0,94359.0,0.3628]
[1745965949573,0.07232,94377.0,94359.0,0.3628]
[1745965949763,0.05,94374.0,94371.0,0.3608]
[1745965949963,0.31,94374.0,94371.0,0.3554952]
[1745965950163,0.31,94374.0,94371.0,0.2497052]
[1745965950364,0.31,94374.0,94371.0,0.19135239]
[1745965950584,0.10597767,94373.0,94371.0,0.13830438]
[1745965950781,0.08,94373.0,94359.0,0.3608]
[1745965951078,0.12640142,94370.0,94359.0,0.58071932]
[1745965951376,0.39640142,94370.0,94359.0,0.76476519]
[1745965951569,0.17640142,94370.0,94369.0,0.3608]
[1745965951769,0.05,94370.0,94369.0,0.3608]
[1745965951971,0.15597205,94370.0,94369.0,0.25557602]
[1745965952293,0.15697205,94370.0,94369.0,0.14948]
[1745965952575,0.15697205,94370.0,94369.0,0.05304801]
[1745965952765,0.28,94370.0,94369.0,0.04338398]
[1745965952963,0.38596644,94370.0,94369.0,0.00966403]
[1745965953164,0.38596644,94370.0,94362.0,0.00158961]
[1745965953674,0.07232,94379.0,94362.0,0.00158961]
[1745965953875,0.05,94374.0,94370.0,0.3608]
[1745965954075,0.2,94374.0,94370.0,0.3077609]
[1745965954282,0.10597037,94373.0,94370.0,0.2547218]
[1745965954584,0.38597037,94373.0,94370.0,0.1486436]
[1745965954786,0.06,94373.0,94362.0,0.36338961]
[1745965955081,0.10596419,94372.0,94362.0,0.59129892]
[1745965955291,0.38596419,94372.0,94362.0,0.59029892]
[1745965955582,0.28,94372.0,94362.0,0.59129892]
[1745965955886,0.10596924,94371.0,94362.0,0.59129892]
[1745965956071,0.06,94371.0,94370.0,0.3608]
[1745965956273,0.06,94371.0,94370.0,0.3077609]
[1745965956573,0.16596924,94371.0,94370.0,0.2547218]
[1745965956772,0.16596924,94371.0,94370.0,0.14865133]
[1745965956971,0.16596924,94371.0,94370.0,0.10607047]
[1745965957168,0.16596924,94371.0,94370.0,0.05403137]
[1745965957373,0.28,94371.0,94370.0,0.05403137]
[1745965957573,0.38596531,94371.0,94370.0,0.05403137]
[1745965957784,0.38596531,94371.0,94370.0,0.00103137]
[1745965957983,0.38596531,94371.0,94370.0,0.001]
[1745965958189,0.38596531,94371.0,94370.0,0.3628]
[1745965958377,0.38596531,94371.0,94370.0,1.31930508]
[1745965958577,0.3,94386.0,94374.0,0.18404587]
[1745965958778,0.06,94386.0,94385.0,0.3608]
[1745965958978,0.06,94386.0,94385.0,0.3077609]
[1745965959283,0.16596531,94386.0,94385.0,0.2547218]
[1745965959474,0.16596531,94386.0,94385.0,0.1486436]
[1745965959670,0.16596531,94386.0,94385.0,0.0956045]
[1745965959871,0.16896531,94386.0,94385.0,0.0530391]
[1745965960171,0.25,94386.0,94385.0,0.0104737]
[1745965960371,0.35694847,94386.0,94385.0,0.3608]
[1745965960580,0.35994847,94386.0,94385.0,0.30776923]
[1745965960777,0.35994847,94386.0,94385.0,0.20366213]
[1745965960971,0.35994847,94386.0,94385.0,0.15063136]
[1745965961181,0.35994847,94386.0,94385.0,0.10606154]
[1745965961387,0.35994847,94386.0,94385.0,0.09760059]
[1745965961590,0.18,94386.0,94385.0,0.00807172]
[1745965961882,0.28894847,94386.0,94385.0,1e-08]
[1745965964379,0.28894847,94386.0,94385.0,0.3608]
[1745965965282,0.28894847,94386.0,94385.0,0.30780272]
[1745965965481,0.28894847,94386.0,94385.0,0.25480272]
[1745965965687,0.28894847,94386.0,94385.0,0.20180272]
[1745965965885,0.28894847,94386.0,94385.0,0.09577195]
[1745965966181,0.28894847,94386.0,94385.0,0.04274118]
[1745965966377,0.28894847,94386.0,94378.0,0.3608]
[1745965966578,0.28894847,94386.0,94379.0,0.3753]
[1745965967370,0.7216,94380.0,94330.0,0.21978099]
[1745965967572,0.7216,94380.0,94333.0,0.07704842]
[1745965967573,0.7216,94335.0,94333.0,0.07704842]
[1745965967780,0.9916,94335.0,94333.0,0.03360178]
[1745965967981,0.15595184,94334.0,94310.0,0.12640142]
[1745965968181,0.7216,94318.0,94311.0,0.57000918]
[1745965968384,0.9916,94318.0,94310.0,0.57000918]
[1745965968576,0.9916,94318.0,94317.0,0.57000918]
[1745965969187,0.73682823,94318.0,94317.0,0.94000918]
[1745965969383,0.73882823,94318.0,94317.0,0.94000918]
[1745965970276,0.36,94333.0,94317.0,1.30080918]
[1745965970481,0.36,94333.0,94332.0,0.57000918]
[1745965970482,0.09,94333.0,94332.0,0.57000918]
[1745965970983,0.14423234,94333.0,94332.0,0.57000918]
[1745965971284,0.25024877,94333.0,94332.0,0.69000918]
[1745965971785,0.25224877,94333.0,94332.0,0.69000918]
[1745965972885,0.26040191,94333.0,94332.0,0.69000918]
[1745965986096,0.26040191,94333.0,94325.0,0.3872]
[1745965986399,0.3608,94326.0,94325.0,0.3872]
[1745965986588,0.17040191,94333.0,94332.0,0.2964473]
[1745965986785,0.30438548,94333.0,94332.0,0.2964473]
[1745965987092,0.41040135,94333.0,94332.0,0.8278473]
[1745965987295,0.40840135,94333.0,94332.0,0.8278473]
[1745965988090,0.3608,94346.0,94332.0,0.88740799]
[1745965988091,0.00801949,94346.0,94332.0,0.88740799]
[1745965988295,0.05801949,94346.0,94338.0,0.3608]
[1745965988493,0.106008,94345.0,94339.0,0.0722]
[1745965988693,0.136008,94345.0,94339.0,0.0722]
[1745965988890,0.136008,94345.0,94339.0,0.178196]
[1745965989091,0.136008,94345.0,94339.0,0.0722]
[1745965989396,0.136008,94345.0,94339.0,0.1922]
[1745965989897,0.136008,94345.0,94339.0,0.2002]
[1745965990100,0.136008,94345.0,94340.0,0.105996]
[1745965990602,0.136008,94345.0,94341.0,0.105996]
[1745965990803,0.136008,94345.0,94340.0,0.105996]
[1745965991298,0.136008,94345.0,94341.0,0.604696]
[1745965991484,0.136008,94345.0,94341.0,0.4987]
[1745965991687,0.136008,94345.0,94342.0,0.105996]
[1745965992090,0.136008,94345.0,94343.0,0.286796]
[1745965992299,0.136008,94345.0,94343.0,0.1280513]
[1745965992590,0.136008,94345.0,94343.0,0.00647763]
[1745965992794,0.1799,94344.0,94343.0,0.00647763]
[1745965993097,0.4299,94344.0,94343.0,0.00647763]
[1745965993396,0.53589508,94344.0,94335.0,0.43124997]
[1745965993598,0.53589508,94344.0,94342.0,0.006]
[1745965994103,0.53589508,94344.0,94335.0,0.43124997]
[1745965994287,0.53589508,94344.0,94343.0,0.006]
[1745965994686,0.35599508,94344.0,94343.0,0.006]
[1745965995086,0.35599508,94344.0,94343.0,0.126]
[1745965995294,0.35599508,94344.0,94343.0,0.125]
[1745965996195,0.35599508,94344.0,94343.0,0.126]
[1745965996392,0.35599508,94344.0,94343.0,0.317]
[1745965996790,0.35599508,94344.0,94343.0,0.32]
[1745965996991,0.55349508,94344.0,94343.0,0.32]
[1745965997197,0.73749508,94344.0,94343.0,0.06001216]
[1745965998096,0.73749508,94344.0,94343.0,0.009]
[1745965998898,0.55349508,94344.0,94343.0,0.009]
[1745965999198,0.35599508,94344.0,94343.0,0.129]
[1745965999399,0.35599508,94344.0,94343.0,0.9012]
[1745965999590,0.35599508,94344.0,94343.0,1.007196]
[1745966000791,0.35599508,94344.0,94343.0,0.9012]
[1745966001790,0.32583534,94359.0,94343.0,0.9012]
[1745966001997,0.06,94359.0,94355.0,0.3608]
[1745966002199,0.11284307,94359.0,94356.0,0.3752]
[1745966002389,0.10599564,94358.0,94356.0,0.3752]
[1745966002591,0.34599564,94358.0,94356.0,0.3752]
[1745966002794,0.35386002,94358.0,94356.0,0.3752]
[1745966003207,0.35386002,94358.0,94357.0,0.7722]
[1745966003509,0.11,94373.0,94370.0,0.12640142]
[1745966003696,0.25,94373.0,94371.0,0.194]
[1745966003898,0.25,94373.0,94371.0,0.3752]
[1745966004201,0.10597991,94372.0,94371.0,0.4952]
[1745966004404,0.35597991,94372.0,94371.0,0.4952]
[1745966004706,0.0127717,94387.0,94371.0,0.4952]
[1745966004906,0.0127717,94387.0,94357.0,0.7722]
[1745966004907,0.46676419,94372.0,94346.0,0.3608]
[1745966005102,0.3608,94363.0,94358.0,0.195]
[1745966005301,0.192,94362.0,94359.0,0.1963]
[1745966005497,0.58637458,94362.0,94359.0,0.1963]
[1745966005697,0.39596419,94362.0,94360.0,0.195]
[1745966006305,0.39596419,94362.0,94361.0,0.1963]
[1745966006694,0.39596419,94362.0,94361.0,0.3913]
[1745966007101,0.06,94362.0,94361.0,0.58218]
[1745966007302,0.16597542,94362.0,94361.0,0.58218]
[1745966007804,0.16597542,94362.0,94361.0,0.58518]
[1745966008403,0.17,94362.0,94361.0,0.99658]
[1745966008705,0.27597542,94362.0,94361.0,0.99858]
[1745966009609,0.07088,94399.0,94361.0,0.99858]
[1745966009799,0.05,94389.0,94380.0,0.3608]
[1745966010107,0.10597542,94388.0,94381.0,0.3786]
[1745966010311,0.33597542,94388.0,94381.0,0.3786]
[1745966010701,0.23,94388.0,94381.0,0.3786]
[1745966010894,0.10594959,94387.0,94381.0,0.3786]
[1745966011109,0.35594959,94387.0,94381.0,0.3786]
[1745966011496,0.06,94387.0,94381.0,0.3786]
[1745966011901,0.10594959,94386.0,94381.0,0.3786]
[1745966012102,0.33594959,94386.0,94381.0,0.3786]
[1745966012502,0.23,94386.0,94385.0,0.3608]
[1745966012710,0.12640142,94395.0,94385.0,0.3408]
[1745966012912,0.11155072,94386.0,94381.0,0.3786]
[1745966013100,0.37155072,94386.0,94381.0,0.3786]
[1745966013306,0.2656,94386.0,94381.0,0.1803]
[1745966013509,0.10595072,94385.0,94379.0,0.7216]
[1745966013709,0.37595072,94385.0,94379.0,0.7216]
[1745966014017,0.0577,94384.0,94379.0,0.7216]
[1745966014210,0.3077,94384.0,94379.0,0.7216]
[1745966014815,0.10595072,94383.0,94379.0,0.7216]
[1745966015114,0.12640142,94390.0,94379.0,0.7216]
[1745966015310,0.12640142,94390.0,94380.0,0.1957]
[1745966015311,0.05,94389.0,94380.0,0.1957]
[1745966015514,0.10595296,94382.0,94380.0,0.1957]
[1745966015712,0.24,94382.0,94381.0,0.7367]
[1745966016503,0.34594959,94382.0,94381.0,0.7367]
[1745966016711,0.07088,94404.0,94381.0,0.7367]
[1745966016908,0.10595296,94382.0,94381.0,0.7367]
[1745966017114,0.34595296,94382.0,94381.0,1.0975]
[1745966017304,0.24,94382.0,94381.0,1.0975]
[1745966017498,0.34595296,94382.0,94381.0,1.0985]
[1745966018405,0.24595296,94382.0,94381.0,1.0985]
[1745966019801,0.00211107,94968.0,94381.0,1.0985]
[1745966020006,0.12088,94404.0,94403.0,0.3608]
[1745966020210,0.12088,94404.0,94403.0,0.28799362]
[1745966020211,0.39088,94404.0,94403.0,0.28799362]
[1745966020400,0.05,94386.0,94381.0,0.20521178]
[1745966020601,0.05,94381.0,94364.0,0.008136]
[1745966020811,0.05,94365.0,94353.0,0.3608]
[1745966021017,0.29,94365.0,94351.0,0.07088]
[1745966021200,0.5434,94364.0,94351.0,0.07088]
[1745966021406,0.08,94364.0,94351.0,0.07088]
[1745966021602,0.10595072,94363.0,94352.0,0.1849]
[1745966021807,0.37595072,94363.0,94352.0,0.1849]
[1745966022105,0.27,94363.0,94352.0,0.1849]
[1745966022413,0.10597767,94362.0,94352.0,0.1849]
[1745966022613,0.37597767,94362.0,94352.0,0.1849]
[1745966022809,0.37597767,94362.0,94355.0,0.00505982]
[1745966023119,0.27,94362.0,94355.0,0.00505982]
[1745966023316,0.10597879,94361.0,94355.0,0.00905982]
[1745966023524,0.12640142,94370.0,94359.0,0.3608]
[1745966023819,0.05,94365.0,94360.0,0.1861]
[1745966024006,0.33,94365.0,94360.0,0.3756]
[1745966024808,0.10597205,94364.0,94360.0,0.3756]
[1745966025012,0.38597205,94364.0,94360.0,0.3756]
[1745966025208,0.12640142,94370.0,94360.0,0.3756]
[1745966025410,0.05,94365.0,94360.0,0.3756]
[1745966025608,0.1059743,94363.0,94360.0,0.3756]
[1745966025812,0.24,94363.0,94360.0,0.3796]
[1745966026015,0.24,94363.0,94360.0,0.3836]
[1745966026213,0.24,94363.0,94360.0,0.5036]
[1745966026620,0.1059743,94362.0,94360.0,0.5016]
[1745966026820,0.28,94362.0,94360.0,0.5016]
[1745966027118,0.09,94362.0,94360.0,0.5016]
[1745966027328,0.10597542,94361.0,94360.0,0.5036]
[1745966027515,0.37597542,94361.0,94360.0,0.5036]
[1745966027814,0.27,94361.0,94360.0,0.5036]
[1745966028224,0.37597654,94361.0,94360.0,0.5036]
[1745966028616,0.24,94361.0,94360.0,0.5036]
[1745966028825,0.34597654,94361.0,94360.0,0.911]
[1745966029124,0.34597654,94361.0,94360.0,0.915]
[1745966029322,0.34438693,94361.0,94360.0,0.915]
[1745966029526,0.34438693,94361.0,94360.0,0.916]
[1745966029727,0.29789158,94361.0,94360.0,0.916]
[1745966029923,0.00284317,94966.0,94360.0,0.916]
[1745966030122,0.05,94378.0,94370.0,0.12640142]
[1745966030322,0.21,94378.0,94377.0,0.7216]
[1745966030818,0.31597654,94378.0,94377.0,0.7216]
[1745966031528,0.25,94378.0,94377.0,0.7216]
[1745966031712,0.35595745,94378.0,94377.0,0.7216]
[1745966032436,0.35595745,94378.0,94377.0,0.7226]
[1745966032926,0.06,94378.0,94377.0,0.7226]
[1745966033229,0.16489797,94378.0,94377.0,0.7226]
[1745966033429,0.16489797,94378.0,94377.0,0.7236]
[1745966034116,0.16330894,94378.0,94377.0,0.7236]
[1745966034316,0.25,94378.0,94377.0,0.7236]
[1745966034630,0.18655745,94378.0,94377.0,0.7236]
[1745966035220,0.18655745,94378.0,94377.0,0.8436]
[1745966035425,0.18655745,94378.0,94377.0,0.78882244]
[1745966035629,0.18655745,94378.0,94377.0,0.70571095]
[1745966035821,0.18655745,94378.0,94377.0,0.70771095]
[1745966036222,0.11,94393.0,94377.0,0.70571095]
[1745966036424,0.11,94393.0,94392.0,0.3608]
[1745966036425,0.16,94393.0,94392.0,0.3608]
[1745966036618,0.21,94393.0,94392.0,0.3608]
[1745966036829,0.16,94393.0,94392.0,0.3608]
[1745966037131,0.26594062,94393.0,94392.0,0.4808]
[1745966037928,0.26594062,94393.0,94392.0,0.4818]
[1745966038127,0.0696,94421.0,94392.0,0.4818]
[1745966038332,0.2196,94421.0,94420.0,0.3608]
[1745966038517,0.3231736,94421.0,94420.0,0.28231525]
[1745966038720,0.6790816,94421.0,94420.0,0.28231525]
[1745966038924,0.7849908,94421.0,94420.0,0.22928258]
[1745966039121,0.9049908,94421.0,94420.0,0.22928258]
[1745966039329,0.275908,94421.0,94420.0,0.17624991]
[1745966039516,0.43705669,94421.0,94420.0,0.12624991]
[1745966039829,0.43705669,94421.0,94420.0,0.07321724]
[1745966040128,0.60705669,94421.0,94420.0,0.05303268]
[1745966040324,0.60705669,94421.0,94420.0,1e-08]
[1745966040519,0.60705669,94421.0,94412.0,0.35168096]
[1745966040729,0.05,94414.0,94412.0,0.35168096]
[1745966041033,0.32,94414.0,94412.0,0.34222629]
[1745966041328,0.2118297,94413.0,94412.0,0.34222629]
[1745966041631,0.21591601,94413.0,94412.0,0.34222629]
[1745966041817,0.3218297,94413.0,94412.0,0.34222629]
[1745966042529,0.3218297,94413.0,94412.0,0.20878229]
[1745966042716,0.3218297,94413.0,94412.0,0.03722453]
[1745966042923,0.3218297,94413.0,94411.0,0.3608]
[1745966042924,0.3698297,94413.0,94411.0,0.34499832]
[1745966043216,0.10592,94412.0,94411.0,0.12912672]
[1745966043420,0.34592,94412.0,94411.0,0.07610051]
[1745966043625,0.39292,94412.0,94411.0,0.07610051]
[1745966043819,0.49883817,94412.0,94407.0,0.3608]
[1745966044023,0.39291817,94412.0,94407.0,0.3608]
[1745966044221,0.1924,94411.0,94407.0,0.30777379]
[1745966044420,0.4424,94411.0,94407.0,0.25474758]
[1745966044728,0.253324,94410.0,94407.0,0.21476672]
[1745966044924,0.5892433,94410.0,94407.0,0.16174051]
[1745966045229,0.298324,94409.0,94401.0,0.198]
[1745966045428,0.05,94404.0,94401.0,0.198]
[1745966045635,0.1924,94403.0,94370.0,0.12640142]
[1745966045930,0.05,94391.0,94379.0,0.06445948]
[1745966046126,0.3398,94390.0,94380.0,0.13115035]
[1745966046321,0.5998,94390.0,94380.0,0.13115035]
[1745966046518,0.3608,94382.0,94380.0,0.13115035]
[1745966046723,0.6308,94382.0,94380.0,0.13115035]
[1745966046917,0.253352,94381.0,94371.0,0.24642928]
[1745966047128,0.72575352,94381.0,94371.0,0.24642928]
[1745966047631,0.72575352,94381.0,94380.0,0.001]
[1745966048120,0.83170953,94381.0,94380.0,0.001]
[1745966048822,0.72575352,94381.0,94380.0,0.001]
[1745966049224,0.72575352,94381.0,94380.0,0.004]
[1745966049421,0.38595352,94381.0,94380.0,0.004]
[1745966049620,0.38595352,94381.0,94380.0,0.28235338]
[1745966049928,0.38595352,94381.0,94380.0,0.28535338]
[1745966050130,0.38595352,94381.0,94380.0,0.40535338]
[1745966050629,0.38595352,94381.0,94380.0,0.03598]
[1745966050933,0.43595352,94381.0,94375.0,0.0696]
[1745966051132,0.58325352,94381.0,94375.0,0.0696]
[1745966051426,0.38595352,94381.0,94376.0,0.1863]
[1745966051835,0.38595352,94381.0,94377.0,0.1888]
[1745966052220,0.38595352,94381.0,94378.0,0.1863]
[1745966052421,0.38595352,94381.0,94380.0,0.16595338]
[1745966052825,0.38595352,94381.0,94380.0,0.27835338]
[1745966053234,0.38595352,94381.0,94380.0,0.39835338]
[1745966053818,0.38595352,94381.0,94380.0,0.40035338]
[1745966055523,0.38595352,94381.0,94380.0,0.40235338]
[1745966055929,0.38595352,94381.0,94380.0,0.22675338]
[1745966056321,0.38595352,94381.0,94380.0,0.19930846]
[1745966056522,0.38595352,94381.0,94380.0,0.13567305]
[1745966056721,0.38595352,94381.0,94380.0,0.08264761]
[1745966056922,0.38595352,94381.0,94380.0,0.02962217]
[1745966057127,0.38595352,94381.0,94378.0,0.1863]
[1745966057345,0.38595352,94381.0,94379.0,0.199]
[1745966057831,0.38595352,94381.0,94380.0,0.1839]
[1745966058633,0.38595352,94381.0,94380.0,0.3139781]
[1745966058829,0.38595352,94381.0,94380.0,0.3101981]
[1745966059230,0.38595352,94381.0,94380.0,0.4321981]
[1745966059436,0.38595352,94381.0,94380.0,0.4051981]
[1745966059836,0.80965352,94381.0,94380.0,0.16628462]
[1745966060032,0.80965352,94381.0,94380.0,0.11694886]
[1745966060232,0.80965352,94381.0,94380.0,0.06369]
[1745966060541,0.80965352,94381.0,94380.0,0.00257456]
[1745966062134,0.80965352,94381.0,94380.0,0.12257456]
[1745966063036,0.80965352,94381.0,94380.0,0.10461]
[1745966064135,0.80965352,94381.0,94380.0,0.08741]
[1745966069145,0.80965352,94381.0,94380.0,0.07124]
[1745966069737,0.61875352,94381.0,94380.0,0.07124]
[1745966069942,0.43595352,94381.0,94380.0,0.07124]
[1745966070434,0.38595352,94381.0,94380.0,0.07124]
[1745966072936,0.38595352,94381.0,94380.0,0.18364]
[1745966075048,0.38595352,94381.0,94380.0,0.56774]
[1745966081158,0.38595352,94381.0,94380.0,0.39993986]
[1745966081449,0.38595352,94381.0,94377.0,0.0592]
[1745966081650,0.4275,94380.0,94374.0,0.10086493]
[1745966081852,0.6575,94380.0,94374.0,0.10086493]
[1745966082349,0.10595801,94379.0,94374.0,0.04900493]
[1745966082549,0.33595801,94379.0,94374.0,0.04900493]
[1745966082753,0.7383,94378.0,94374.0,0.04900493]
[1745966082953,0.9783,94378.0,94374.0,0.04900493]
[1745966083252,0.9783,94378.0,94377.0,0.001]
[1745966083654,1.08425858,94378.0,94377.0,0.001]
[1745966083845,1.08425858,94378.0,94374.0,0.05200493]
[1745966084044,1.08425858,94378.0,94374.0,0.05300493]
[1745966084656,1.08425858,94378.0,94377.0,0.004]
[1745966085152,1.08425858,94378.0,94377.0,0.002]
[1745966085756,1.08425858,94378.0,94376.0,0.18905]
[1745966086055,1.08425858,94378.0,94377.0,0.1845]
[1745966087362,1.08425858,94378.0,94377.0,0.1865]
[1745966089257,1.08425858,94378.0,94377.0,0.1875]
[1745966089958,1.08425858,94378.0,94377.0,0.18415]
[1745966090546,1.08425858,94378.0,94377.0,0.17083]
[1745966099752,0.89515858,94378.0,94377.0,0.17083]
[1745966100348,0.70675858,94378.0,94377.0,0.17083]
[1745966103264,0.34595858,94378.0,94377.0,0.17083]
[1745966110464,0.81271459,94378.0,94362.0,0.05362]
[1745966110668,0.3608,94363.0,94359.0,0.06836]
[1745966110870,0.3608,94363.0,94343.0,0.3608]
[1745966110871,0.3745,94362.0,94343.0,0.3608]
[1745966111070,0.6345,94362.0,94344.0,0.06836]
[1745966111265,0.10597598,94361.0,94344.0,0.06836]
[1745966111466,0.36597598,94361.0,94344.0,0.06836]
[1745966111670,0.381,94360.0,94344.0,0.06836]
[1745966111863,0.631,94360.0,94344.0,0.06836]
[1745966112381,0.10598609,94359.0,94350.0,0.25280284]
[1745966112577,0.36598609,94359.0,94350.0,0.25280284]
[1745966112779,0.36598609,94359.0,94350.0,0.35878684]
[1745966113167,0.36598609,94359.0,94350.0,0.47878684]
[1745966114076,0.36598609,94359.0,94351.0,0.02576889]
[1745966114777,0.36798609,94359.0,94351.0,0.02576889]
[1745966114976,0.36998609,94359.0,94351.0,0.02576889]
[1745966115177,0.36998609,94359.0,94351.0,0.14576889]
[1745966115676,0.36998609,94359.0,94352.0,0.5668]
[1745966115873,0.3649,94358.0,94353.0,0.06836]
[1745966116074,0.6249,94358.0,94353.0,0.06836]
[1745966116275,0.6249,94358.0,94354.0,0.3684]
[1745966116579,0.10598216,94357.0,94354.0,0.3684]
[1745966116782,0.37598216,94357.0,94354.0,0.3684]
[1745966116973,0.56088216,94357.0,94354.0,0.3684]
[1745966117165,0.56088216,94357.0,94354.0,0.4884]
[1745966117890,0.56288216,94357.0,94354.0,0.4884]
[1745966118592,0.56488216,94357.0,94354.0,0.4884]
[1745966119989,0.1956,94356.0,94344.0,0.06836]
[1745966120291,0.3608,94345.0,94344.0,0.00486]
[1745966120478,0.6008,94345.0,94344.0,0.00486]
[1745966120879,0.6008,94345.0,94344.0,1e-08]
[1745966121080,0.70678216,94345.0,94344.0,1e-08]
[1745966121781,0.75898434,94345.0,94344.0,1e-08]
[1745966122387,0.76698434,94345.0,94342.0,0.1807]
[1745966122587,0.3841,94344.0,94342.0,0.1807]
[1745966122790,0.6241,94344.0,94342.0,0.1807]
[1745966123281,0.1059962,94343.0,94342.0,0.1807]
[1745966123486,0.3759962,94343.0,94341.0,0.1921]
[1745966123683,0.7445,94342.0,94328.0,0.06832]
[1745966123888,0.3608,94329.0,94324.0,0.06832]
[1745966124093,0.3837,94328.0,94325.0,0.3742]
[1745966124294,0.71970519,94328.0,94325.0,0.3742]
[1745966124896,0.71970519,94328.0,94324.0,0.06832]
[1745966125196,0.1913,94327.0,94324.0,0.06832]
[1745966125401,0.4213,94327.0,94324.0,0.06832]
[1745966125599,0.3837,94326.0,94324.0,0.06832]
[1745966125897,0.73971474,94326.0,94324.0,0.06832]
[1745966126201,0.73971474,94326.0,94324.0,0.18832]
[1745966127201,0.74471474,94326.0,94324.0,0.18832]
[1745966127596,0.73971474,94326.0,94324.0,0.18832]
[1745966127896,0.75171474,94326.0,94324.0,0.18832]
[1745966130098,0.75171474,94326.0,94324.0,0.00512]
[1745966130299,0.75171474,94326.0,94314.0,0.12]
[1745966130597,0.3608,94321.0,94315.0,0.19]
[1745966130798,0.3745,94320.0,94316.0,0.1835]
[1745966130986,0.6545,94320.0,94316.0,0.1835]
[1745966131187,0.1060243,94319.0,94316.0,0.3035]
[1745966131395,0.3760243,94319.0,94316.0,0.3035]
[1745966131590,0.3745,94318.0,94316.0,0.3035]
[1745966131795,0.6345,94318.0,94316.0,0.3035]